[Event "German Bundesliga 2024-25"]
[Site "Germany"]
[Date "2024.12.01"]
[Round "4.2"]
[White "Svane, Rasmus"]
[Black "L'Ami, Erwin"]
[Result "1/2-1/2"]
[Annotator "RC"]
[ECO "B52"]
[WhiteElo "2628"]
[BlackElo "2614"]
[PlyCount "209"]
[EventDate "2024.09.27"]
[EventType "team-tourn"]
[EventCountry "GER"]
[SourceTitle "playchess.com"]
[Source "ChessBase"]
[SourceQuality "1"]
[WhiteTeam "Hamburg"]
[BlackTeam "SG Solingen"]
[TimeControl "40/5400+30:1800+30"]

1. e4 {[%emt 0:00:03]} c5 {[%emt 0:00:39]} 2. Nf3 {[%emt 0:00:36]} d6 {[%emt 0:00:09]} 3. Bb5+ {[%emt 0:01:48]} Bd7 {[%emt 0:00:33]} 4. c4 {[%emt 0:03:07]} Nc6 {[%emt 0:06:04]} 5. Nc3 {[%emt 0:02:13]} g6 {[%emt 0:04:50]} 6. Bxc6 {[%emt 0:04:59]} Bxc6 {[%emt 0:01:00]} 7. d4 {[%emt 0:00:23]} Bg7 {[%emt 0:03:32]} 8. Be3 {[%emt 0:19:05]} Nf6 {[%emt 0:05:32]} 9. d5 {[%emt 0:04:11]} Bd7 {[%emt 0:00:11]} 10. h3 {[%emt 0:00:56]} O-O {[%emt 0:04:42]} 11. O-O {[%emt 0:06:47]} a6 {[%emt 0:05:23]} 12. a4 {[%emt 0:11:32]} Rb8 {[%emt 0:06:35]} 13. e5 {[%emt 0:10:48]} Ne8 {[%emt 0:01:47]} 14. Bf4 {[%emt 0:00:12]} b5 {[%emt 0:03:06]} 15. axb5 {[%emt 0:00:10]} axb5 {[%emt 0:00:06]} 16. b3 {[%emt 0:02:50]} bxc4 {[%emt 0:05:21]} 17. bxc4 {[%emt 0:00:06]} Rb4 {[%emt 0:05:38]} 18. Qe2 {[%emt 0:01:01]} dxe5 {[%emt 0:03:34]} 19. Bxe5 {[%emt 0:07:13]} f6 {[%emt 0:02:05]} 20. Bf4 {[%emt 0:04:14]} Nd6 {[%emt 0:02:14]} 21. Nd2 {[%emt 0:00:53]} f5 {[%emt 0:08:25]} 22. Be5 {[%emt 0:04:33]} Bxe5 {[%emt 0:08:30]} 23. Qxe5 {[%emt 0:00:03]} Rb2 {[%emt 0:02:01]} 24. Nce4 {[%emt 0:07:59]} Rc2 {[%emt 0:03:21]} 25. Nxd6 {[%emt 0:00:41]} exd6 {[%emt 0:00:10]} 26. Qf4 {[%emt 0:01:00]} g5 {[%emt 0:04:25]} 27. Qxd6 {[%emt 0:00:59]} Rxd2 {[%emt 0:01:36]} 28. Ra7 {[%emt 0:01:52]} Rf7 {[%emt 0:01:00]} 29. Rb1 {[%emt 0:00:44]} Qe7 {[%emt 0:00:54]} 30. Qh6 {[%emt 0:02:23]} Rg7 {[%emt 0:03:04]} 31. Rb8+ {[%emt 0:00:57]} Kf7 {[%emt 0:00:04]} 32. Qh5+ {[%emt 0:00:25]} Kf6 {[%emt 0:01:07]} 33. Rb6+ {[%emt 0:00:40]} Ke5 {[%emt 0:00:06]} 34. Re6+ {[%emt 0:01:00]} Bxe6 {[%emt 0:00:50]} 35. Rxe7 {[%emt 0:00:14]} Rxe7 {[%emt 0:00:24]} 36. Qxg5 {[%emt 0:00:36]} Rd1+ {[%emt 0:00:46]} 37. Kh2 {[%emt 0:00:03]} Kd6 {[%emt 0:01:49]} 38. Qg3+ {[%emt 0:00:52]} Kd7 {[%emt 0:00:18]} 39. Qb3 {[%emt 0:00:40]} Re1 {[%emt 0:05:46]} 40. Qb5+ {[%emt 0:00:37]} Kd6 {[%emt 0:00:44]} 41. Qb6+ {[%emt 0:03:03]} Ke5 {[%emt 0:07:46]} 42. Qb2+ {[%emt 0:00:11]} Kd6 {[%emt 0:00:34]} 43. Qb6+ {[%emt 0:00:49]} Ke5 {[%emt 0:00:16]} 44. Qxc5 {[%emt 0:14:47]} Kf6 {[%emt 0:01:19]} 45. Qd4+ {[%emt 0:01:10]} Kg6 {[%emt 0:01:41]} 46. dxe6 {[%emt 0:03:02]} R1xe6 {[%emt 0:00:10]} 47. f4 {[%emt 0:02:54]} h6 {[%emt 0:04:40]} 48. Qd5 {[%emt 0:00:50]} Rf6 {[%emt 0:02:20]} 49. Qg8+ {[%emt 0:01:53]} Rg7 {[%emt 0:00:37]} 50. Qd8 {[%emt 0:00:12]} Rgf7 {[%emt 0:01:15]} 51. Qg8+ {[%emt 0:00:27]} Rg7 {[%emt 0:00:06]} 52. Qc8 {[%emt 0:00:34]} Rgf7 {[%emt 0:03:45]} 53. Kg3 {[%emt 0:00:47]} Rf8 {[%emt 0:00:41]} 54. Qc5 {[%emt 0:00:17]} R8f7 {[%emt 0:00:51]} 55. Kh4 {[%emt 0:00:43]} Rf8 {[%emt 0:00:12]} 56. Kg3 {[%emt 0:01:55]} R8f7 {[%emt 0:00:10]} 57. Kf3 {[%emt 0:00:43]} Kh7 {[%emt 0:01:26]} 58. Qd5 {[%emt 0:01:20]} Rc7 {[%emt 0:05:42]} 59. Qe5 {[%emt 0:01:41]} Rfc6 {[%emt 0:00:37]} 60. Qxf5+ {[%emt 0:00:05]} Kh8 {[%emt 0:01:44]} 61. Qh5 {[%emt 0:01:00]} Kh7 {[%emt 0:00:42]} 62. g4 {[%emt 0:02:09]} Rxc4 {[%emt 0:00:48]} 63. g5 {[%emt 0:00:12]} R4c6 {[%emt 0:00:46]} 64. h4 {[%emt 0:00:30]} Re7 {[%emt 0:01:25]} 65. Kg3 {[%emt 0:01:19]} Rc3+ {[%emt 0:01:34]} 66. Kg4 {[%emt 0:00:07]} Rc6 {[%emt 0:00:06]} 67. Kg3 {[%emt 0:00:12]} Rc3+ {[%emt 0:00:06]} 68. Kg4 {[%emt 0:00:06]} Rc6 {[%emt 0:00:04]} 69. Kf5 {[%emt 0:00:46]} Kg7 {[%emt 0:02:04]} 70. Qd1 {[%emt 0:00:39]} Rf7+ {[%emt 0:00:59]} 71. Kg4 {[%emt 0:00:11]} Rc4 {[%emt 0:00:22]} 72. Kh5 {[%emt 0:00:54]} Rcxf4 {[%emt 0:01:18]} 73. Qa1+ {[%emt 0:00:17]} Kg8 {[%emt 0:00:24]} 74. Kxh6 {[%emt 0:01:17]} Rxh4+ {[%emt 0:00:08]} 75. Kg6 {[%emt 0:00:04]} Rhf4 {[%emt 0:00:33]} 76. Qa8+ {[%emt 0:00:49]} Rf8 {[%emt 0:00:02]} 77. Qd5+ {[%emt 0:00:07]} R8f7 {[%emt 0:00:29]} 78. Qd8+ {[%emt 0:00:34]} Rf8 {[%emt 0:00:04]} 79. Qd5+ {[%emt 0:00:30]} R8f7 {[%emt 0:00:04]} 80. Qe6 {[%emt 0:01:08]} Rf1 {[%emt 0:00:47]} 81. Qc8+ {[%emt 0:00:33]} Rf8 {[%emt 0:00:05]} 82. Qb7 {[%emt 0:00:06]} R8f7 {[%emt 0:00:20]} 83. Qa8+ {[%emt 0:00:06]} Rf8 {[%emt 0:00:02]} 84. Qd5+ {[%emt 0:00:07]} R8f7 {[%emt 0:00:16]} 85. Kh6 {[%emt 0:00:31]} Rh1+ {[%emt 0:00:09]} 86. Kg6 {[%emt 0:00:13]} Rhf1 {[%emt 0:00:05]} 87. Qe6 {[%emt 0:01:26]} R1f2 {[%emt 0:00:22]} 88. Qe8+ {[%emt 0:00:28]} Rf8 {[%emt 0:00:05]} 89. Qe5 {[%emt 0:00:08]} R8f7 {[%emt 0:00:13]} 90. Qb8+ {[%emt 0:01:11]} Rf8 {[%emt 0:00:04]} 91. Qb7 {[%emt 0:00:10]} R8f7 {[%emt 0:00:06]} 92. Qa8+ {[%emt 0:00:06]} Rf8 {[%emt 0:00:04]} 93. Qd5+ {[%emt 0:00:09]} R8f7 {[%emt 0:00:04]} 94. Kh5 {[%emt 0:00:33]} R2f5 {[%emt 0:01:59]} 95. Qe6 {[%emt 0:00:57]} Kg7 {[%emt 0:00:12]} 96. Qg6+ {[%emt 0:00:53]} Kh8 {[%emt 0:00:48]} 97. Qd6 {[%emt 0:00:58]} Kg7 {[%emt 0:00:17]} 98. Qd4+ {[%emt 0:00:26]} Kh7 {[%emt 0:00:34]} 99. Qd3 {[%emt 0:00:22]} Kg7 {[%emt 0:00:09]} 100. Qe4 {[%emt 0:00:12]} Kh7 {[%emt 0:00:31]} 101. Qe6 {[%emt 0:00:44]} Kg7 {[%emt 0:00:07]} 102. Qg6+ {[%emt 0:00:22]} Kh8 {[%emt 0:00:06]} 103. Kh6 {[%emt 0:00:44]} Rxg5 {[%emt 0:00:52]} 104. Qxf7 {[%emt 0:00:41]} Rg6+ {[%emt 0:00:06]} 105. Kxg6 {[%emt 0:00:11]} 1/2-1/2

[Event "German Bundesliga 2024-25"]
[Site "Germany"]
[Date "2024.12.01"]
[Round "4.2"]
[White "Brkic, Ante"]
[Black "Santos Latasa, Jaime"]
[Result "1/2-1/2"]
[ECO "B85"]
[WhiteElo "2608"]
[BlackElo "2630"]
[PlyCount "46"]
[EventDate "2024.09.27"]
[EventType "team-tourn"]
[EventCountry "GER"]
[TimeControl "40/5400+30:1800+30"]

{[%evp 30,46,0,-15,0,0,46,0,2,0,0,0,0,-17,0,0,-12,-6,2]} 1. e4 {[%emt 0:00:02]} c5 {[%emt 0:00:05]} 2. Nf3 {[%emt 0:00:06][%cal Bg1f3,Bf3d4,Bd4b5][%mdl 32]} e6 {[%emt 0:00:03]} 3. d4 {[%emt 0:00:21]} cxd4 {[%emt 0:00:05]} 4. Nxd4 {[%emt 0:00:04]} Nc6 {[%emt 0:00:06]} 5. Nc3 {[%emt 0:00:06]} Qc7 {[%emt 0:00:03]} 6. Be2 {[%emt 0:10:47]} Nf6 {[%emt 0:00:21]} 7. Ndb5 {[%emt 0:01:21]} Qb8 {[%emt 0:00:07]} 8. f4 {[%emt 0:00:06]} d6 {[%emt 0:00:26]} 9. Be3 {[%emt 0:01:36]} Be7 {[%emt 0:00:38]} 10. O-O {[%emt 0:06:57]} O-O {[%emt 0:06:42]} 11. Qe1 {[%emt 0:09:53]} a6 {[%emt 0:02:01]} 12. Nd4 {[%emt 0:00:09]} Nxd4 {[%emt 0:02:18]} 13. Bxd4 {[%emt 0:00:06]} b5 {[%emt 0:00:28]} 14. Bd3 {[%emt 0:05:43]} Bb7 {[%emt 0:04:22]} 15. Qg3 {[%emt 0:05:07]} Qc7 {[%emt 0:07:35]} 16. a3 {[%emt 0:03:50]} Rad8 {[%emt 0:03:41]} 17. Kh1 {[%emt 0:03:16]} Ne8 {[%emt 0:07:23]} (17... Bc6 $11) 18. Rae1 {[%emt 0:06:04]} (18. Qe3 {simplifies} Qd7 19. Rad1 Bc6 20. Qh3) 18... Bf6 {[%emt 0:04:09] The position is equal.} 19. e5 {[%emt 0:02:45]} (19. Ne2 {simplifies} e5 20. fxe5 Bxe5 21. Qh4) 19... dxe5 {[%emt 0:01:46]} 20. Bxe5 {[%emt 0:00:09]} Qb6 {[%emt 0:04:53]} 21. Be4 {[%emt 0:08:32]} Be7 {[%emt 0:08:15] White must now prevent ...f6.} 22. Bxb7 {[%emt 0:05:56]} Qxb7 {[%emt 0:00:20]} 23. Ne4 {[%emt 0:00:01]} a5 {[%emt 0:02:11] An uneventful encounter.   Weighted Error Value: White=0.11 (very precise) /Black=0.11 (very precise) .  Mistake:       	---       	Black=1      Inaccurate:     	White=1     	---        OK:         	White=3     	Black=4} 1/2-1/2

[Event "German Bundesliga 2024-25"]
[Site "Germany"]
[Date "2024.12.01"]
[Round "4.2"]
[White "Laurusas, Tomas"]
[Black "Bluebaum, Matthias"]
[Result "1/2-1/2"]
[Annotator "TA"]
[ECO "D45"]
[WhiteElo "2579"]
[BlackElo "2654"]
[PlyCount "41"]
[EventDate "2024.09.27"]
[EventType "team-tourn"]
[EventCountry "GER"]
[SourceTitle "playchess.com"]
[Source "ChessBase"]
[SourceQuality "1"]
[WhiteTeam "Bad Mergentheim"]
[BlackTeam "Deizisau"]
[TimeControl "40/5400+30:1800+30"]

{[%evp 14,41,0,0,1,0,11,6,0,0,0,0,13,12,11,0,29,29,26,31,41,43,17,28,56,22,73,65,39,36]} 1. d4 {[%emt 0:00:03]} Nf6 {[%emt 0:00:07]} 2. c4 {[%emt 0:00:12]} e6 {[%emt 0:00:05]} 3. Nf3 {[%emt 0:00:10]} d5 {[%emt 0:00:06]} 4. Nc3 {[%emt 0:00:14]} c6 {[%emt 0:00:22]} 5. e3 {[%emt 0:08:43]} Nbd7 {[%emt 0:00:11]} 6. Be2 {[%emt 0:00:37]} Bd6 {[%emt 0:00:15]} 7. O-O {[%emt 0:00:37]} O-O {[%emt 0:00:06]} 8. b3 {[%emt 0:00:25]} b6 {[%emt 0:00:22]} 9. Bb2 {[%emt 0:00:22]} Bb7 {[%emt 0:00:06]} 10. Bd3 {[%emt 0:03:19]} Re8 {[%emt 0:02:18] The position is equal.} 11. Re1 {[%emt 0:02:54]} h6 {[%emt 0:00:11]} 12. Qe2 {[%emt 0:06:27]} c5 {[%emt 0:09:29]} 13. cxd5 {[%emt 0:02:24]} exd5 {[%emt 0:00:07]} 14. Ba6 {[%emt 0:07:41]} Qc8 {[%emt 0:07:44]} 15. Bxb7 {[%emt 0:00:31]} Qxb7 {[%emt 0:00:02]} 16. Red1 {[%emt 0:04:56]} Red8 {[%emt 0:13:13]} 17. Rac1 {[%emt 0:08:13]} Rac8 {[%emt 0:00:56]} 18. h3 {[%emt 0:12:07]} Bb8 {[%emt 0:12:38]} 19. Rc2 {[%emt 0:08:54]} a6 {[%emt 0:10:54]} (19... c4 $11 {remains equal.}) 20. dxc5 $16 {[%emt 0:01:45]} bxc5 {[%emt 0:00:13]} 21. Na4 {[%emt 0:00:43] Weighted Error Value: White=0.03 (flawless) /Black=0.13 (very precise) .  Mistake:       	---       	Black=1      Inaccurate:     	White=1     	Black=2      OK:         	White=8     	Black=4} 1/2-1/2

[Event "German Bundesliga 2024-25"]
[Site "Germany"]
[Date "2024.12.01"]
[Round "4.3"]
[White "Dardha, Daniel"]
[Black "Rakotomaharo, Fy Antenaina"]
[Result "1-0"]
[Annotator "TA"]
[ECO "B07"]
[WhiteElo "2606"]
[BlackElo "2429"]
[PlyCount "107"]
[EventDate "2024.09.27"]
[EventType "team-tourn"]
[EventCountry "GER"]
[SourceTitle "playchess.com"]
[Source "ChessBase"]
[SourceQuality "1"]
[WhiteTeam "Deizisau"]
[BlackTeam "Bad Mergentheim"]
[TimeControl "40/5400+30:1800+30"]

{[%evp 24,107,55,0,2,0,0,7,15,7,12,0,0,0,7,22,48,57,42,32,47,41,26,47,37,38,129,122,137,56,145,142,184,174,215,198,262,296,276,277,491,491,418,459,431,304,331,331,324,295,284,64,83,-77,-149,-136,40,44,268,276,260,288,327,312,322,336,330,330,7681,329,377,284,281,14,764,498,29981,29982,29980,29965,29963,29962,29961,29958,5741,5730]} 1. Nf3 {[%emt 0:00:06]} Nf6 {[%emt 0:00:34]} 2. g3 {[%emt 0:00:20]} g6 {[%emt 0:00:24]} 3. Bg2 {[%emt 0:00:29]} Bg7 {[%emt 0:00:15]} 4. O-O {[%emt 0:00:17]} O-O {[%emt 0:00:25]} 5. d4 {[%emt 0:00:18]} d6 {[%emt 0:00:30]} 6. Nc3 {[%emt 0:02:56]} Nbd7 {[%emt 0:04:55]} 7. a4 {[%emt 0:02:44]} a5 {[%emt 0:01:56]} 8. e4 {[%emt 0:05:33]} e5 {[%emt 0:01:37]} 9. h3 {[%emt 0:01:54]} Re8 {[%emt 0:11:34]} 10. Re1 {[%emt 0:04:32]} c6 {[%emt 0:02:39]} 11. Be3 {[%emt 0:05:07]} exd4 {[%emt 0:10:08]} 12. Bxd4 {[%emt 0:01:17] B07: Pirc Defence: Miscellaneous Systems.} Qc7 {[%emt 0:03:21]} 13. Nd2 {[%emt 0:04:33]} (13. Qd2 $14) 13... b6 $11 {[%emt 0:12:29]} 14. f4 {[%emt 0:14:08]} Ba6 {[%emt 0:02:59]} 15. Qf3 {[%emt 0:04:46]} Re7 {[%emt 0:06:09]} 16. Qf2 {[%emt 0:14:37]} Rae8 {[%emt 0:08:54]} 17. g4 $146 {[%emt 0:04:55]} ({Predecessor:} 17. Rab1 Nc5 18. Kh2 Nh5 19. Nb3 Bxd4 20. Nxd4 Bb7 21. Re2 Ng7 22. Rbe1 Nge6 23. Nf3 {½-½ Landa,K-Akopian,V (2520) URS-qual U20 1989}) 17... h6 {[%emt 0:08:07]} 18. Rad1 {[%emt 0:08:03]} Qb8 {[%emt 0:01:04]} 19. Nf1 {[%emt 0:02:48]} c5 {[%emt 0:19:30]} 20. Bxf6 {[%emt 0:02:50]} Nxf6 {[%emt 0:00:06]} 21. Ng3 {[%emt 0:00:29]} b5 {[%emt 0:01:33]} 22. axb5 {[%emt 0:03:54]} Bxb5 {[%emt 0:00:05]} 23. Nxb5 {[%emt 0:01:02]} Qxb5 {[%emt 0:00:04]} 24. Rxd6 {[%emt 0:00:23]} Qxb2 {[%emt 0:00:19]} ({Black should try} 24... Rd7 $1 $14 25. Rxd7 Nxd7) 25. e5 $1 $16 {[%emt 0:00:26]} (25. Qxc5 $6 Nd7 26. Qc6 Nf8 $11) 25... Nh7 {[%emt 0:01:49]} 26. Qxc5 {[%emt 0:02:23]} (26. Bd5 $16 Nf8 27. h4 (27. Qxc5 Ne6 $16)) 26... Bf8 {[%emt 0:00:11]} (26... Nf8 $14) 27. Qc4 $16 {[%emt 0:01:57]} Re6 {[%emt 0:01:32]} 28. Rxe6 $1 {[%emt 0:02:41]} Rxe6 {[%emt 0:00:21]} 29. Bd5 {[%emt 0:00:09]} Qb6+ {[%emt 0:00:54]} (29... Re7 $142 30. Re2 Qb6+ 31. Kg2 Kg7) 30. Kg2 $18 {[%emt 0:00:54]} Re7 {[%emt 0:00:04]} 31. Ne4 {[%emt 0:02:04]} Rc7 $2 {[%emt 0:00:21]} (31... Ra7 {was called for.} 32. Qd3 Kg7) 32. Rb1 $18 {[%emt 0:01:45]} Qa7 {[%emt 0:00:51]} 33. Qd3 {[%emt 0:00:05]} Kh8 {[%emt 0:00:41]} 34. f5 {[%emt 0:02:02]} gxf5 {[%emt 0:00:35]} 35. gxf5 {[%emt 0:00:45]} a4 {[%emt 0:00:16]} 36. h4 {[%emt 0:03:54]} a3 {[%emt 0:00:21]} 37. c3 $2 {[%emt 0:00:40]} ({White has to play} 37. Kh3 $1 $18) 37... Rd7 $1 $14 {[%emt 0:00:26]} 38. e6 $2 {[%emt 0:00:42]} (38. c4 $16 {stays on course.}) 38... fxe6 $17 {[%emt 0:00:15]} 39. fxe6 {[%emt 0:00:03]} Rg7+ $2 {[%emt 0:01:04]} ({Black should play} 39... Rd8 $1 $17 40. Rf1 (40. Rb7 $2 Qxb7 41. Qd4+ Bg7 $19) 40... a2) 40. Kh3 $14 {[%emt 0:00:31]} Be7 $2 {[%emt 0:00:39]} (40... a2 $1 $14 41. Ra1 Qc7 42. Rxa2 (42. Bxa2 $2 Qf4 $19) 42... Qf4) 41. Qd4 $18 {[%emt 0:06:11]} a2 {[%emt 0:09:51]} 42. Ra1 {[%emt 0:02:52]} (42. Qxa7 $2 axb1=Q (42... axb1=R 43. Nd2 $14) 43. Ng3 Bd6 $19) 42... Qb8 {[%emt 0:00:59]} 43. Rxa2 {[%emt 0:12:18]} (43. Bxa2 $2 Qf4 $19) 43... Qf4 {[%emt 0:14:46]} 44. Ra8+ $1 {[%emt 0:00:48]} Nf8 {[%emt 0:00:06]} 45. Qf2 $1 {[%emt 0:00:19]} Qg4+ {[%emt 0:00:10]} 46. Kh2 {[%emt 0:00:04]} Rg8 {[%emt 0:00:05] [#]} 47. c4 $1 {[%emt 0:06:02]} h5 {[%emt 0:02:41] [#]} 48. Re8 $2 {[%emt 0:02:57]} ({White must play} 48. Ng5 $1 $18 {Strongly threatening c5.} Bd6+ 49. Kh1 Qd1+ 50. Qg1 Qxg1+ 51. Kxg1) 48... Qg7 $2 {[%emt 0:03:12][%mdl 8192]} (48... Bxh4 $11 49. Qd4+ Kh7 50. Nf6+ Bxf6 51. Qxg4 (51. Qxf6 $2 {leads to mate.} Qg3+ 52. Kh1 Qh3#) 51... Rxg4 (51... hxg4 $2 52. e7 $18) 52. Rxf8 Be7) 49. Qf3 {[%emt 0:02:10]} Qe5+ {[%emt 0:01:19]} (49... Nh7 $18) 50. Kh3 {[%emt 0:00:49]} Nxe6 {[%emt 0:01:45]} 51. Rxg8+ {[%emt 0:00:13]} Kxg8 {[%emt 0:00:05]} 52. Qg3+ {[%emt 0:00:05]} Qxg3+ {[%emt 0:00:53]} 53. Nxg3 {[%emt 0:00:08]} Kf7 {[%emt 0:00:21]} 54. Ne4 {[%emt 0:00:10]} ({Weaker is} 54. Nxh5 Kg6 $16) (54. Bxe6+ Kxe6 55. Kg2 (55. Nxh5 Ke5 $11) 55... Bxh4 $11) 1-0

[Event "German Bundesliga 2024-25"]
[Site "Germany"]
[Date "2024.12.01"]
[Round "4.3"]
[White "Idani, Pouya"]
[Black "Predojevic, Borki"]
[Result "1/2-1/2"]
[Annotator "TA"]
[ECO "C55"]
[WhiteElo "2603"]
[BlackElo "2565"]
[PlyCount "51"]
[EventDate "2024.09.27"]
[EventType "team-tourn"]
[EventCountry "GER"]
[SourceTitle "playchess.com"]
[Source "ChessBase"]
[SourceQuality "1"]
[WhiteTeam "Bayern Muenchen"]
[BlackTeam "Kirchweyhe"]
[TimeControl "40/5400+30:1800+30"]

{[%evp 12,51,10,4,14,2,27,18,0,9,21,14,18,11,29,36,27,26,31,18,22,21,29,21,29,19,20,20,31,31,35,23,23,23,23,23,23,23,23,23,37,30]} 1. e4 {[%emt 0:00:09]} e5 {[%emt 0:00:06]} 2. Nf3 {[%emt 0:00:06]} Nc6 {[%emt 0:00:05]} 3. Bc4 {[%emt 0:02:08]} Nf6 {[%emt 0:00:53]} 4. d3 {[%emt 0:06:05]} Be7 5. Nc3 {[%emt 0:02:00]} d6 {[%emt 0:03:40]} 6. a3 {[%emt 0:01:51]} O-O {[%emt 0:04:52]} 7. h3 {[%emt 0:01:59]} a5 {[%emt 0:06:51]} 8. O-O {[%emt 0:04:07]} h6 {[%emt 0:03:42]} 9. d4 {[%emt 0:04:03]} exd4 {[%emt 0:16:58] The position is equal.} 10. Nxd4 {[%emt 0:00:13]} Nxd4 {[%emt 0:06:22]} 11. Qxd4 {[%emt 0:01:56]} Nd7 {[%emt 0:00:05]} 12. Nd5 {[%emt 0:06:45]} Bf6 {[%emt 0:00:07]} 13. Nxf6+ {[%emt 0:08:09]} Qxf6 {[%emt 0:00:13]} 14. Qxf6 {[%emt 0:07:44]} Nxf6 {[%emt 0:00:09]} 15. Bd3 {[%emt 0:00:44]} Re8 {[%emt 0:09:16]} 16. f3 {[%emt 0:05:21]} a4 {[%emt 0:08:19]} 17. Bd2 {[%emt 0:03:57]} Nd7 {[%emt 0:06:52]} 18. Rfe1 {[%emt 0:02:17][%cal Bf1e1,Be1e3,Be3c3][%mdl 32]} Nc5 {[%emt 0:00:56]} 19. Bb5 {[%emt 0:05:47]} Bd7 {[%emt 0:00:56]} 20. Bf1 {[%emt 0:00:06]} h5 {[%emt 0:06:39]} 21. Rad1 {[%emt 0:02:39][%cal Oe4e5]} f6 {[%emt 0:01:11]} 22. h4 {[%emt 0:01:07]} b6 {[%emt 0:01:50]} 23. Re3 {[%emt 0:05:48]} Re7 {[%emt 0:04:42]} 24. Bc1 {[%emt 0:00:46]} Be6 {[%emt 0:00:38]} 25. Rc3 {[%emt 0:04:06]} Bf7 {[%emt 0:03:09]} 26. Kf2 {[%emt 0:04:37] Weighted Error Value: White=0.04 (flawless) /Black=0.05 (flawless) .  OK:         	White=6     	Black=6} 1/2-1/2

[Event "German Bundesliga 2024-25"]
[Site "Germany"]
[Date "2024.12.01"]
[Round "4.3"]
[White "Ragger, Markus"]
[Black "Huschenbeth, Niclas"]
[Result "1/2-1/2"]
[Annotator "TA"]
[ECO "D27"]
[WhiteElo "2579"]
[BlackElo "2594"]
[PlyCount "67"]
[EventDate "2024.09.27"]
[EventType "team-tourn"]
[EventCountry "GER"]
[SourceTitle "playchess.com"]
[Source "ChessBase"]
[SourceQuality "1"]
[WhiteTeam "SG Solingen"]
[BlackTeam "Hamburg"]
[TimeControl "40/5400+30:1800+30"]

{[%evp 11,67,34,11,7,13,8,18,26,14,39,11,10,6,15,13,10,17,0,0,0,0,0,0,0,0,0,0,0,0,0,0,0,0,0,0,0,0,0,0,0,0,0,0,0,0,0,8,0,0,0,0,0,0,0,0,0,0,0]} 1. d4 {[%emt 0:00:02]} d5 {[%emt 0:00:06]} 2. c4 {[%emt 0:00:04]} dxc4 {[%emt 0:00:04]} 3. Nf3 {[%emt 0:00:07]} Nf6 {[%emt 0:00:05]} 4. e3 {[%emt 0:00:05]} e6 {[%emt 0:00:06]} 5. Bxc4 {[%emt 0:00:05]} c5 {[%emt 0:00:08]} 6. O-O {[%emt 0:00:06]} a6 {[%emt 0:00:05]} 7. Be2 {[%emt 0:00:04]} Nbd7 {[%emt 0:00:07]} 8. b3 {[%emt 0:00:37]} b6 {[%emt 0:00:09]} 9. Ne5 {[%emt 0:00:29]} Bb7 {[%emt 0:02:58]} 10. Bf3 {[%emt 0:02:54]} Bxf3 {[%emt 0:00:24]} 11. Qxf3 {[%emt 0:00:02] The position is equal.} Bd6 {[%emt 0:01:24]} 12. Nxd7 {[%emt 0:10:46]} Nxd7 {[%emt 0:00:08]} 13. Bb2 {[%emt 0:00:11] Threatens to win with dxc5.} cxd4 {[%emt 0:13:46]} 14. Bxd4 {[%emt 0:03:03]} O-O {[%emt 0:01:40]} 15. Nd2 {[%emt 0:09:06]} Be5 {[%emt 0:11:50]} 16. Qe4 {[%emt 0:05:20]} Bxd4 {[%emt 0:11:40]} 17. Qxd4 {[%emt 0:00:28]} Nc5 {[%emt 0:05:14]} 18. Nc4 {[%emt 0:09:32]} Qxd4 {[%emt 0:00:44]} 19. exd4 {[%emt 0:00:03]} Nd7 {[%emt 0:00:20]} 20. Rfd1 {[%emt 0:00:05]} b5 {[%emt 0:13:59]} 21. Ne3 {[%emt 0:00:43]} Nf6 {[%emt 0:01:59]} 22. d5 {[%emt 0:00:23]} exd5 {[%emt 0:01:07]} 23. Nxd5 {[%emt 0:00:07]} Nxd5 {[%emt 0:00:06]} 24. Rxd5 $11 {[%emt 0:00:04][%mdl 4096] Endgame. KRR-KRR} Rfc8 {[%emt 0:06:13]} 25. g3 {[%emt 0:03:59]} g6 {[%emt 0:01:59]} 26. Rad1 {[%emt 0:05:05]} Rc2 {[%emt 0:01:11]} 27. a4 {[%emt 0:00:50]} bxa4 {[%emt 0:01:51]} 28. bxa4 {[%emt 0:00:04]} Rc4 {[%emt 0:10:44]} 29. a5 {[%emt 0:06:11]} Ra4 {[%emt 0:00:17]} 30. R1d4 {[%emt 0:07:14]} Ra1+ {[%emt 0:00:39]} 31. Rd1 {[%emt 0:00:05]} Ra2 {[%emt 0:00:13]} 32. R1d2 {[%emt 0:01:47]} Ra1+ {[%emt 0:00:07]} 33. Rd1 {[%emt 0:00:04]} Ra2 {[%emt 0:00:05]} 34. R1d2 {[%emt 0:00:03] A balanced but interesting game.   Weighted Error Value: White=0.01 (flawless) /Black=0.01 (flawless) .  OK:         	White=9     	Black=22} 1/2-1/2

[Event "German Bundesliga 2024-25"]
[Site "Germany"]
[Date "2024.12.01"]
[Round "4.3"]
[White "Zilka, Stepan"]
[Black "Maurizzi, Marc`Andria"]
[Result "1/2-1/2"]
[Annotator "TA"]
[ECO "D63"]
[WhiteElo "2539"]
[BlackElo "2585"]
[PlyCount "55"]
[EventDate "2024.09.27"]
[EventType "team-tourn"]
[EventCountry "GER"]
[SourceTitle "playchess.com"]
[Source "ChessBase"]
[SourceQuality "1"]
[WhiteTeam "Heimbach-Weis-Neuwied"]
[BlackTeam "St. Pauli"]
[TimeControl "40/5400+30:1800+30"]

{[%evp 16,55,14,7,23,6,11,7,7,0,0,0,0,0,0,0,4,-7,0,-11,-7,-17,-14,-37,-33,-51,-50,-72,-62,-53,-46,-75,-32,-68,-29,-39,0,-2,-7,-10,-4,-12]} 1. d4 {[%emt 0:00:04]} Nf6 {[%emt 0:00:45]} 2. c4 {[%emt 0:00:06]} e6 {[%emt 0:00:28]} 3. Nc3 {[%emt 0:00:05]} d5 {[%emt 0:00:22]} 4. Bg5 {[%emt 0:01:03]} Be7 {[%emt 0:04:02]} 5. e3 {[%emt 0:00:49]} h6 {[%emt 0:00:38]} 6. Bh4 {[%emt 0:00:09]} Nbd7 {[%emt 0:09:35]} 7. Nf3 {[%emt 0:00:30]} c6 {[%emt 0:00:41]} 8. Rc1 {[%emt 0:02:12]} O-O {[%emt 0:02:23]} 9. a3 {[%emt 0:00:24]} Ne8 {[%emt 0:08:41]} 10. Bxe7 {[%emt 0:04:04]} Qxe7 {[%emt 0:00:04]} 11. Qc2 {[%emt 0:02:08]} Nd6 {[%emt 0:05:21]} 12. cxd5 {[%emt 0:05:05]} exd5 {[%emt 0:00:54]} 13. Bd3 {[%emt 0:00:12]} Nf6 {[%emt 0:02:10]} 14. O-O {[%emt 0:01:12]} g6 {[%emt 0:02:39]} 15. Na4 {[%emt 0:13:50]} Bf5 {[%emt 0:03:59]} 16. Nc5 {[%emt 0:01:49]} Bxd3 {[%emt 0:02:12]} 17. Qxd3 {[%emt 0:01:09]} Nd7 {[%emt 0:01:37]} 18. b4 {[%emt 0:06:54]} a5 {[%emt 0:09:33]} 19. Qb3 {[%emt 0:00:53]} Ra7 {[%emt 0:03:56]} 20. h3 {[%emt 0:10:28]} Rfa8 {[%emt 0:02:14]} 21. Rfe1 {[%emt 0:00:01][%cal Ob4b5]} axb4 {[%emt 0:01:11]} 22. axb4 {[%emt 0:00:08]} Ra2 {[%emt 0:08:49]} 23. Qb1 {[%emt 0:00:44]} Nb6 {[%emt 0:06:11]} 24. Qd3 {[%emt 0:08:50]} Rb2 {[%emt 0:04:30][%cal Oa8a2]} 25. Ra1 {[%emt 0:07:06]} Rba2 {[%emt 0:00:52]} (25... Rxb4 $2 {perishes.} 26. Rxa8+ Nxa8 27. Qa3 $18) 26. Rxa2 {[%emt 0:00:37] The position is equal.} Rxa2 {[%emt 0:00:02]} 27. Qb1 {[%emt 0:02:39]} Ra8 {[%emt 0:00:30]} 28. e4 {[%emt 0:08:48] Weighted Error Value: White=0.11 (very precise) /Black=0.12 (very precise) .  Inaccurate:     	White=2     	Black=3      OK:         	White=5     	Black=2} 1/2-1/2